[Event "Late-Titled-Tuesday-Blitz-March-12-2024"]
[Site "Chess.com"]
[Date "2024.03.12"]
[Round "10"]
[White "Jagerrmeisterr"]
[Black "KuzubovYuriy"]
[Result "1-0"]
[WhiteElo "2743"]
[BlackElo "2898"]
[TimeControl "180+1"]
[EndTime "15:53:41 PDT"]
[Termination "Jagerrmeisterr won by resignation"]

1. e4 {[%clk 0:03:00.9]} 1... g6 {[%clk 0:03:00.9]} 2. Nc3 {[%clk 0:03:00.3]}
2... Bg7 {[%clk 0:03:01.6]} 3. g3 {[%clk 0:03:00.9]} 3... e5 {[%clk 0:02:59.3]}
4. Bg2 {[%clk 0:03:00.7]} 4... Ne7 {[%clk 0:02:59.9]} 5. Nge2 {[%clk 0:02:59]}
5... O-O {[%clk 0:03:00.5]} 6. O-O {[%clk 0:02:59.2]} 6... d6 {[%clk 0:02:56.4]}
7. d3 {[%clk 0:02:48.9]} 7... Nbc6 {[%clk 0:02:54.5]} 8. Be3 {[%clk 0:02:47.3]}
8... f5 {[%clk 0:02:53.9]} 9. f4 {[%clk 0:02:45.8]} 9... fxe4 {[%clk 0:02:52.5]}
10. dxe4 {[%clk 0:02:44.9]} 10... Be6 {[%clk 0:02:45.8]} 11. Qd2 {[%clk
0:02:40.7]} 11... Qd7 {[%clk 0:02:45]} 12. Nd5 {[%clk 0:02:29]} 12... Rae8
{[%clk 0:02:38.6]} 13. Rae1 {[%clk 0:02:21.3]} 13... Nc8 {[%clk 0:02:37.3]} 14.
c3 {[%clk 0:02:14.2]} 14... Nb6 {[%clk 0:02:32]} 15. b3 {[%clk 0:02:14.3]} 15...
exf4 {[%clk 0:02:30.6]} 16. Nexf4 {[%clk 0:02:11.2]} 16... Bf7 {[%clk
0:02:10.7]} 17. Bh3 {[%clk 0:02:11]} 17... Qd8 {[%clk 0:02:08.4]} 18. Nxb6
{[%clk 0:02:02.9]} 18... axb6 {[%clk 0:02:08.1]} 19. Nd5 {[%clk 0:02:03.3]}
19... Bxd5 {[%clk 0:01:43.1]} 20. exd5 {[%clk 0:02:01.7]} 20... Ne5 {[%clk
0:01:43.1]} 21. Be6+ {[%clk 0:01:55.1]} 21... Kh8 {[%clk 0:01:42.5]} 22. Qe2
{[%clk 0:01:52.4]} 22... Qe7 {[%clk 0:01:34.4]} 23. c4 {[%clk 0:01:46.8]} 23...
c5 {[%clk 0:01:31.3]} 24. Kg2 {[%clk 0:01:44.5]} 24... h5 {[%clk 0:01:25.8]} 25.
h4 {[%clk 0:01:43.3]} 25... Kh7 {[%clk 0:01:24.9]} 26. Qc2 {[%clk 0:01:35.3]}
26... Rxf1 {[%clk 0:01:20.6]} 27. Rxf1 {[%clk 0:01:35.3]} 27... Rf8 {[%clk
0:01:21.3]} 28. Rxf8 {[%clk 0:01:35.5]} 28... Qxf8 {[%clk 0:01:21.4]} 29. Qe4
{[%clk 0:01:35.6]} 29... Qa8 {[%clk 0:01:07.9]} 30. Qc2 {[%clk 0:01:26.8]} 30...
Qa5 {[%clk 0:00:57.6]} 31. Bd2 {[%clk 0:01:21.5]} 31... Qa6 {[%clk 0:00:56.7]}
32. a4 {[%clk 0:01:19.4]} 32... Qa8 {[%clk 0:00:56.7]} 33. Bf4 {[%clk 0:01:16]}
33... Qf8 {[%clk 0:00:55.3]} 34. Qe4 {[%clk 0:01:13.8]} 34... Bf6 {[%clk
0:00:52.1]} 35. Kh3 {[%clk 0:01:02.5]} 35... Qe7 {[%clk 0:00:45.9]} 36. Qe2
{[%clk 0:00:58.8]} 36... Qg7 {[%clk 0:00:38.9]} 37. Qf1 {[%clk 0:00:54.1]} 37...
Qe7 {[%clk 0:00:19.8]} 38. Bd2 {[%clk 0:00:47.5]} 38... Kg7 {[%clk 0:00:18.3]}
39. Qf4 {[%clk 0:00:47.2]} 39... Ng4 {[%clk 0:00:14.9]} 40. Bxg4 {[%clk
0:00:39.2]} 40... hxg4+ {[%clk 0:00:15.4]} 41. Qxg4 {[%clk 0:00:39.9]} 41... Kh7
{[%clk 0:00:13.8]} 42. h5 {[%clk 0:00:39.1]} 42... gxh5 {[%clk 0:00:11.1]} 43.
Qxh5+ {[%clk 0:00:39.1]} 43... Kg8 {[%clk 0:00:11.6]} 44. Qg6+ {[%clk
0:00:38.4]} 44... Kh8 {[%clk 0:00:11.9]} 45. Bf4 {[%clk 0:00:34]} 45... Bd4
{[%clk 0:00:11.9]} 46. Qh5+ {[%clk 0:00:28]} 46... Kg8 {[%clk 0:00:10.7]} 47.
Qg5+ {[%clk 0:00:27.8]} 47... Qxg5 {[%clk 0:00:07.7]} 48. Bxg5 {[%clk
0:00:28.7]} 48... Be5 {[%clk 0:00:08]} 49. Kg4 {[%clk 0:00:28.4]} 49... Kf7
{[%clk 0:00:08.2]} 50. Bf4 {[%clk 0:00:28.7]} 1-0

[Event "Late-Titled-Tuesday-Blitz-March-12-2024"]
[Site "Chess.com"]
[Date "2024.03.12"]
[Round "10"]
[White "nindjaxx8"]
[Black "EsmeraldasAnderson03"]
[Result "1-0"]
[WhiteElo "2686"]
[BlackElo "2575"]
[TimeControl "180+1"]
[EndTime "15:53:44 PDT"]
[Termination "nindjaxx8 won on time"]

1. d4 {[%clk 0:02:56.7]} 1... d5 {[%clk 0:02:59.5]} 2. c4 {[%clk 0:02:55.9]}
2... dxc4 {[%clk 0:03:00.4]} 3. Nc3 {[%clk 0:02:54.1]} 3... Nf6 {[%clk
0:02:58.7]} 4. e3 {[%clk 0:02:52.4]} 4... a6 {[%clk 0:02:58.1]} 5. Bxc4 {[%clk
0:02:49.4]} 5... e6 {[%clk 0:02:58.3]} 6. Be2 {[%clk 0:02:45.9]} 6... c5 {[%clk
0:02:58.2]} 7. Nf3 {[%clk 0:02:45.3]} 7... Be7 {[%clk 0:02:52]} 8. O-O {[%clk
0:02:42.8]} 8... O-O {[%clk 0:02:51.7]} 9. a3 {[%clk 0:02:42.5]} 9... b5 {[%clk
0:02:47.6]} 10. dxc5 {[%clk 0:02:30.2]} 10... Bxc5 {[%clk 0:02:48.5]} 11. b4
{[%clk 0:02:29.9]} 11... Be7 {[%clk 0:02:47.7]} 12. Bb2 {[%clk 0:02:29.5]} 12...
Bb7 {[%clk 0:02:45.8]} 13. Qb3 {[%clk 0:02:29.8]} 13... Nbd7 {[%clk 0:02:45.9]}
14. Rfd1 {[%clk 0:02:21.9]} 14... Qe8 {[%clk 0:02:38.6]} 15. Rac1 {[%clk
0:02:16.6]} 15... Nb6 {[%clk 0:02:33.4]} 16. Nd4 {[%clk 0:02:13.7]} 16... Rc8
{[%clk 0:02:32.1]} 17. Bf3 {[%clk 0:02:01.3]} 17... Bxf3 {[%clk 0:02:30.1]} 18.
Nxf3 {[%clk 0:02:02.2]} 18... Nc4 {[%clk 0:02:29.9]} 19. Ne2 {[%clk 0:01:56]}
19... Nxb2 {[%clk 0:02:13]} 20. Qxb2 {[%clk 0:01:48.3]} 20... Nd5 {[%clk
0:02:12.9]} 21. Ned4 {[%clk 0:01:44.9]} 21... Bf6 {[%clk 0:02:12.2]} 22. Qb3
{[%clk 0:01:42.3]} 22... Nb6 {[%clk 0:02:11.6]} 23. h3 {[%clk 0:01:36.1]} 23...
Qe7 {[%clk 0:01:54.6]} 24. Nc6 {[%clk 0:01:31.1]} 24... Qb7 {[%clk 0:01:51.5]}
25. Na5 {[%clk 0:01:24.4]} 25... Qe4 {[%clk 0:01:50]} 26. Rxc8 {[%clk
0:01:15.6]} 26... Rxc8 {[%clk 0:01:49.2]} 27. Qa2 {[%clk 0:01:11.8]} 27... Nc4
{[%clk 0:01:47.4]} 28. Nb3 {[%clk 0:01:08.4]} 28... g6 {[%clk 0:01:28.9]} 29.
Nc5 {[%clk 0:00:45]} 29... Qc6 {[%clk 0:01:29.4]} 30. Nd4 {[%clk 0:00:43.1]}
30... Qd5 {[%clk 0:01:16.6]} 31. Qe2 {[%clk 0:00:37.4]} 31... Qa8 {[%clk
0:01:01.2]} 32. a4 {[%clk 0:00:30.6]} 32... Bxd4 {[%clk 0:00:34.7]} 33. Rxd4
{[%clk 0:00:29.9]} 33... Qc6 {[%clk 0:00:34]} 34. axb5 {[%clk 0:00:28.7]} 34...
axb5 {[%clk 0:00:34.6]} 35. Qd3 {[%clk 0:00:23.5]} 35... Ne5 {[%clk 0:00:31.2]}
36. Qd1 {[%clk 0:00:16.7]} 36... Kg7 {[%clk 0:00:26.4]} 37. Rd6 {[%clk
0:00:16.3]} 37... Qa8 {[%clk 0:00:13.5]} 38. Qd4 {[%clk 0:00:15.6]} 38... f6
{[%clk 0:00:13]} 39. Nxe6+ {[%clk 0:00:15.3]} 39... Kg8 {[%clk 0:00:12.4]} 40.
Nc5 {[%clk 0:00:14.2]} 40... Re8 {[%clk 0:00:08.5]} 41. Rxf6 {[%clk 0:00:13.1]}
41... Qa2 {[%clk 0:00:03.6]} 42. f4 {[%clk 0:00:10.5]} 1-0

[Event "Late-Titled-Tuesday-Blitz-March-12-2024"]
[Site "Chess.com"]
[Date "2024.03.12"]
[Round "10"]
[White "Eloist"]
[Black "LikeWater"]
[Result "0-1"]
[WhiteElo "2484"]
[BlackElo "2690"]
[TimeControl "180+1"]
[EndTime "15:53:45 PDT"]
[Termination "LikeWater won by resignation"]

1. e4 {[%clk 0:02:54.8]} 1... e5 {[%clk 0:02:59.2]} 2. Bc4 {[%clk 0:02:53.6]}
2... Nf6 {[%clk 0:02:58.5]} 3. d3 {[%clk 0:02:53.5]} 3... c6 {[%clk 0:02:58.7]}
4. Nf3 {[%clk 0:02:53.7]} 4... d5 {[%clk 0:02:58.9]} 5. Bb3 {[%clk 0:02:54]}
5... Bd6 {[%clk 0:02:58.4]} 6. Nc3 {[%clk 0:02:52.9]} 6... dxe4 {[%clk
0:02:56.8]} 7. Ng5 {[%clk 0:02:50.7]} 7... O-O {[%clk 0:02:52.2]} 8. Ncxe4
{[%clk 0:02:50.6]} 8... Nxe4 {[%clk 0:02:43.9]} 9. Nxe4 {[%clk 0:02:50.2]} 9...
Be7 {[%clk 0:02:40.9]} 10. O-O {[%clk 0:02:49.2]} 10... Bf5 {[%clk 0:02:32.8]}
11. Ng3 {[%clk 0:02:44]} 11... Bg6 {[%clk 0:02:31.3]} 12. f4 {[%clk 0:02:41.9]}
12... exf4 {[%clk 0:02:28.3]} 13. Bxf4 {[%clk 0:02:41.6]} 13... Qd4+ {[%clk
0:02:26.6]} 14. Kh1 {[%clk 0:02:41.8]} 14... Qxb2 {[%clk 0:02:26.2]} 15. Rb1
{[%clk 0:02:42.1]} 15... Qd4 {[%clk 0:02:15.5]} 16. Qe2 {[%clk 0:02:40.6]} 16...
Bd6 {[%clk 0:02:03.3]} 17. Bxd6 {[%clk 0:02:26.5]} 17... Qxd6 {[%clk 0:02:04.2]}
18. Rbe1 {[%clk 0:02:20.2]} 18... Nd7 {[%clk 0:01:53.4]} 19. Qe7 {[%clk
0:02:19.9]} 19... Qxe7 {[%clk 0:01:54]} 20. Rxe7 {[%clk 0:02:20.2]} 20... Nc5
{[%clk 0:01:54.9]} 21. Rfe1 {[%clk 0:02:11.2]} 21... b5 {[%clk 0:01:44.3]} 22.
h4 {[%clk 0:01:54.3]} 22... h6 {[%clk 0:01:29.6]} 23. h5 {[%clk 0:01:52.3]}
23... Bh7 {[%clk 0:01:29.2]} 24. Rc7 {[%clk 0:01:37.5]} 24... Nxb3 {[%clk
0:01:25.9]} 25. axb3 {[%clk 0:01:38.4]} 25... Rfc8 {[%clk 0:01:20.5]} 26. Ree7
{[%clk 0:01:35.6]} 26... Rxc7 {[%clk 0:01:20.3]} 27. Rxc7 {[%clk 0:01:36.5]}
27... a5 {[%clk 0:01:20.8]} 28. Rxc6 {[%clk 0:01:29.6]} 28... a4 {[%clk
0:01:20.7]} 29. bxa4 {[%clk 0:01:28.7]} 29... bxa4 {[%clk 0:01:21.6]} 30. Ne2
{[%clk 0:01:18.9]} 30... a3 {[%clk 0:01:17.6]} 31. Nc3 {[%clk 0:01:18.9]} 31...
Bf5 {[%clk 0:01:17.5]} 32. Na2 {[%clk 0:01:12.4]} 32... Be6 {[%clk 0:01:12.1]}
33. c4 {[%clk 0:01:12]} 33... Bf5 {[%clk 0:01:12.7]} 34. Rd6 {[%clk 0:01:00.6]}
34... Rb8 {[%clk 0:01:12.7]} 35. Rd5 {[%clk 0:00:50.9]} 35... Be6 {[%clk
0:00:59.3]} 36. Ra5 {[%clk 0:00:46.9]} 36... Rb3 {[%clk 0:00:59.8]} 37. Ra8+
{[%clk 0:00:42.3]} 37... Kh7 {[%clk 0:00:59]} 38. Nc1 {[%clk 0:00:18.2]} 38...
Rb1 {[%clk 0:00:34.2]} 39. Kh2 {[%clk 0:00:16.6]} 39... Rxc1 {[%clk 0:00:32.6]}
40. Rxa3 {[%clk 0:00:16.4]} 40... Bg4 {[%clk 0:00:27.3]} 41. Ra5 {[%clk
0:00:16]} 41... Rc3 {[%clk 0:00:23.6]} 42. Rd5 {[%clk 0:00:15.4]} 42... Be2
{[%clk 0:00:24.3]} 43. Rd4 {[%clk 0:00:11.2]} 43... Bxd3 {[%clk 0:00:23.8]} 44.
c5 {[%clk 0:00:10.8]} 44... f5 {[%clk 0:00:19.2]} 45. Rd6 {[%clk 0:00:08.7]}
45... Be4 {[%clk 0:00:18.8]} 46. Kg1 {[%clk 0:00:07.2]} 46... Rxc5 {[%clk
0:00:18.6]} 0-1

[Event "Late-Titled-Tuesday-Blitz-March-12-2024"]
[Site "Chess.com"]
[Date "2024.03.12"]
[Round "10"]
[White "Grischuk"]
[Black "vugarrasulov"]
[Result "1-0"]
[WhiteElo "3076"]
[BlackElo "2948"]
[TimeControl "180+1"]
[EndTime "15:53:47 PDT"]
[Termination "Grischuk won on time"]

1. d4 {[%clk 0:03:00.9]} 1... Nf6 {[%clk 0:02:58.8]} 2. c4 {[%clk 0:03:01.2]}
2... e6 {[%clk 0:02:59.1]} 3. Bg5 {[%clk 0:03:00.9]} 3... c5 {[%clk 0:02:58.1]}
4. d5 {[%clk 0:03:00.8]} 4... exd5 {[%clk 0:02:57.8]} 5. cxd5 {[%clk 0:03:01.7]}
5... d6 {[%clk 0:02:58.4]} 6. e4 {[%clk 0:03:01.5]} 6... Be7 {[%clk 0:02:56.7]}
7. Bf4 {[%clk 0:03:00.5]} 7... O-O {[%clk 0:02:54.4]} 8. Nd2 {[%clk 0:03:00.2]}
8... Re8 {[%clk 0:02:50.7]} 9. Bd3 {[%clk 0:02:46.4]} 9... Bf8 {[%clk
0:02:48.7]} 10. Ne2 {[%clk 0:02:43.9]} 10... Na6 {[%clk 0:02:30.7]} 11. O-O
{[%clk 0:02:40.9]} 11... Nb4 {[%clk 0:02:21.7]} 12. Bb1 {[%clk 0:02:40.9]} 12...
b6 {[%clk 0:02:21.7]} 13. a3 {[%clk 0:02:36.9]} 13... Na6 {[%clk 0:02:16.2]} 14.
Nc3 {[%clk 0:02:36.6]} 14... Nc7 {[%clk 0:02:14.3]} 15. Bd3 {[%clk 0:02:31.4]}
15... a6 {[%clk 0:01:59.6]} 16. a4 {[%clk 0:02:30.4]} 16... Rb8 {[%clk
0:01:59.5]} 17. Qc2 {[%clk 0:01:55]} 17... b5 {[%clk 0:01:55.9]} 18. b3 {[%clk
0:01:43.4]} 18... g6 {[%clk 0:01:49.8]} 19. h3 {[%clk 0:01:36.8]} 19... Bg7
{[%clk 0:01:48.5]} 20. Rae1 {[%clk 0:01:37.1]} 20... Rb6 {[%clk 0:01:25.2]} 21.
Re2 {[%clk 0:01:28.3]} 21... Nd7 {[%clk 0:00:53.8]} 22. a5 {[%clk 0:01:22.1]}
22... Rb7 {[%clk 0:00:54.3]} 23. Bxd6 {[%clk 0:01:22.2]} 23... Be5 {[%clk
0:00:24.3]} 24. Bxe5 {[%clk 0:01:18.4]} 24... Nxe5 {[%clk 0:00:25.2]} 25. f4
{[%clk 0:01:15.5]} 25... Nxd3 {[%clk 0:00:25.1]} 26. Qxd3 {[%clk 0:01:15.8]}
26... f5 {[%clk 0:00:20.3]} 27. d6 {[%clk 0:00:59.1]} 27... Ne6 {[%clk
0:00:14.3]} 28. e5 {[%clk 0:00:41.1]} 28... Nd4 {[%clk 0:00:14]} 29. Re3 {[%clk
0:00:39.3]} 29... Be6 {[%clk 0:00:14.2]} 30. Ne2 {[%clk 0:00:33.9]} 30... Nxb3
{[%clk 0:00:13.2]} 31. Nxb3 {[%clk 0:00:34.8]} 31... c4 {[%clk 0:00:13]} 32. Qd2
{[%clk 0:00:30.9]} 32... cxb3 {[%clk 0:00:13.6]} 33. Nd4 {[%clk 0:00:31.6]}
33... Bc4 {[%clk 0:00:11.1]} 34. Rb1 {[%clk 0:00:30.7]} 34... b4 {[%clk
0:00:10.9]} 35. Nxb3 {[%clk 0:00:29.7]} 35... Bxb3 {[%clk 0:00:09.2]} 36. Rexb3
{[%clk 0:00:28.7]} 36... Qxa5 {[%clk 0:00:09.8]} 37. Rxb4 {[%clk 0:00:26.7]}
37... Kh8 {[%clk 0:00:05.7]} 38. Qd4 {[%clk 0:00:23.6]} 38... Rxb4 {[%clk
0:00:04.1]} 39. Rxb4 {[%clk 0:00:22.8]} 39... Kg8 {[%clk 0:00:03.9]} 40. Kh2
{[%clk 0:00:17.4]} 40... Qa2 {[%clk 0:00:02.7]} 41. Rb7 {[%clk 0:00:15.5]} 41...
Qe6 {[%clk 0:00:02.2]} 42. Qa7 {[%clk 0:00:14.9]} 1-0

[Event "Late-Titled-Tuesday-Blitz-March-12-2024"]
[Site "Chess.com"]
[Date "2024.03.12"]
[Round "10"]
[White "Hrant_ChessMood"]
[Black "KaydenTroffChess"]
[Result "0-1"]
[WhiteElo "2958"]
[BlackElo "2834"]
[TimeControl "180+1"]
[EndTime "15:53:51 PDT"]
[Termination "KaydenTroffChess won by checkmate"]

1. c4 {[%clk 0:03:00.9]} 1... Nf6 {[%clk 0:02:59.2]} 2. g3 {[%clk 0:02:58.6]}
2... g6 {[%clk 0:02:56.2]} 3. Bg2 {[%clk 0:02:57.9]} 3... Bg7 {[%clk 0:02:56.6]}
4. Nf3 {[%clk 0:02:58.6]} 4... O-O {[%clk 0:02:56.2]} 5. O-O {[%clk 0:02:59]}
5... c6 {[%clk 0:02:56.8]} 6. d4 {[%clk 0:02:41.7]} 6... d5 {[%clk 0:02:55.6]}
7. Qa4 {[%clk 0:02:41]} 7... Nbd7 {[%clk 0:02:51.5]} 8. cxd5 {[%clk 0:02:40.9]}
8... Nxd5 {[%clk 0:02:46.1]} 9. Nc3 {[%clk 0:02:39.7]} 9... N5b6 {[%clk
0:02:42.5]} 10. Qa3 {[%clk 0:02:38.8]} 10... Re8 {[%clk 0:02:14.6]} 11. Bg5
{[%clk 0:02:36.1]} 11... h6 {[%clk 0:02:14]} 12. Bf4 {[%clk 0:02:33.2]} 12... g5
{[%clk 0:02:02.3]} 13. Be3 {[%clk 0:02:24.3]} 13... Nc4 {[%clk 0:01:57.8]} 14.
Qb3 {[%clk 0:02:24.1]} 14... Nxe3 {[%clk 0:01:56.7]} 15. fxe3 {[%clk 0:02:25]}
15... Qb6 {[%clk 0:01:47.8]} 16. Qc2 {[%clk 0:02:14.2]} 16... e5 {[%clk
0:01:41.2]} 17. Rad1 {[%clk 0:02:13.8]} 17... exd4 {[%clk 0:01:39.4]} 18. exd4
{[%clk 0:02:14.1]} 18... c5 {[%clk 0:01:30.8]} 19. Nd5 {[%clk 0:02:07.2]} 19...
Qc6 {[%clk 0:01:08.8]} 20. Nxg5 {[%clk 0:01:35.1]} 20... hxg5 {[%clk 0:00:55.5]}
21. Ne7+ {[%clk 0:01:34.9]} 21... Rxe7 {[%clk 0:00:55.1]} 22. Bxc6 {[%clk
0:01:35.8]} 22... bxc6 {[%clk 0:00:55.6]} 23. dxc5 {[%clk 0:01:36.7]} 23... Ba6
{[%clk 0:00:39.8]} 24. Rf2 {[%clk 0:01:26.5]} 24... Nf6 {[%clk 0:00:29.7]} 25.
Rd4 {[%clk 0:00:40]} 25... Rae8 {[%clk 0:00:26.4]} 26. Qf5 {[%clk 0:00:20.3]}
26... Bc8 {[%clk 0:00:17.6]} 27. Qxg5 {[%clk 0:00:18.7]} 27... Ne4 {[%clk
0:00:18]} 28. Rxe4 {[%clk 0:00:16]} 28... Rxe4 {[%clk 0:00:18.9]} 29. a3 {[%clk
0:00:09]} 29... Rg4 {[%clk 0:00:19]} 30. Qc1 {[%clk 0:00:05.9]} 30... Bd4 {[%clk
0:00:19.1]} 31. Kg2 {[%clk 0:00:04.9]} 31... Bxf2 {[%clk 0:00:18.7]} 32. Kxf2
{[%clk 0:00:05.8]} 32... Rg6 {[%clk 0:00:17.1]} 33. e3 {[%clk 0:00:04.9]} 33...
Rf6+ {[%clk 0:00:15.8]} 34. Kg2 {[%clk 0:00:05.1]} 34... Rfe6 {[%clk 0:00:16.4]}
35. e4 {[%clk 0:00:01.5]} 35... Rg6 {[%clk 0:00:16.3]} 36. Qf4 {[%clk
0:00:01.6]} 36... Rg4 {[%clk 0:00:14.3]} 37. Qc7 {[%clk 0:00:01.6]} 37... Rgxe4
{[%clk 0:00:14]} 38. Qxc6 {[%clk 0:00:02.1]} 38... Re2+ {[%clk 0:00:14.3]} 39.
Kf3 {[%clk 0:00:02.4]} 39... R2e3+ {[%clk 0:00:11.2]} 40. Kf4 {[%clk 0:00:01.9]}
40... R3e6 {[%clk 0:00:11.2]} 41. Qc7 {[%clk 0:00:01.8]} 41... Rf6+ {[%clk
0:00:11.5]} 42. Kg5 {[%clk 0:00:02.4]} 42... Rf5+ {[%clk 0:00:12.1]} 43. Kh4
{[%clk 0:00:03]} 43... Re4+ {[%clk 0:00:12.1]} 44. g4 {[%clk 0:00:03.6]} 44...
Rxg4+ {[%clk 0:00:12.7]} 45. Kh3 {[%clk 0:00:02.5]} 45... Rh5# {[%clk
0:00:12.4]} 0-1

[Event "Late-Titled-Tuesday-Blitz-March-12-2024"]
[Site "Chess.com"]
[Date "2024.03.12"]
[Round "10"]
[White "yaguigor"]
[Black "nj123456"]
[Result "1-0"]
[WhiteElo "2600"]
[BlackElo "2461"]
[TimeControl "180+1"]
[EndTime "15:53:53 PDT"]
[Termination "yaguigor won by resignation"]

1. Nf3 {[%clk 0:03:00.9]} 1... Nf6 {[%clk 0:02:59.9]} 2. c4 {[%clk 0:03:00]}
2... e6 {[%clk 0:03:00.1]} 3. Nc3 {[%clk 0:02:58.7]} 3... d5 {[%clk 0:03:01]} 4.
d4 {[%clk 0:02:58.4]} 4... Be7 {[%clk 0:02:59.3]} 5. Bf4 {[%clk 0:02:57.1]} 5...
O-O {[%clk 0:02:59.9]} 6. e3 {[%clk 0:02:56.9]} 6... c5 {[%clk 0:02:59.7]} 7.
dxc5 {[%clk 0:02:56.7]} 7... Bxc5 {[%clk 0:02:59.1]} 8. cxd5 {[%clk 0:02:52.3]}
8... Nxd5 {[%clk 0:03:00]} 9. Nxd5 {[%clk 0:02:51.8]} 9... exd5 {[%clk
0:03:00.9]} 10. a3 {[%clk 0:02:52]} 10... Nc6 {[%clk 0:02:55.1]} 11. Bd3 {[%clk
0:02:52]} 11... Bg4 {[%clk 0:02:53.6]} 12. Bxh7+ {[%clk 0:02:50.4]} 12... Kxh7
{[%clk 0:02:51.6]} 13. Qc2+ {[%clk 0:02:49.7]} 13... g6 {[%clk 0:02:43.1]} 14.
Ng5+ {[%clk 0:02:32.2]} 14... Kg8 {[%clk 0:02:39.2]} 15. Qxc5 {[%clk 0:02:32.8]}
15... d4 {[%clk 0:02:32.1]} 16. h3 {[%clk 0:02:20.5]} 16... dxe3 {[%clk
0:02:22.3]} 17. Bxe3 {[%clk 0:02:18.3]} 17... Bf5 {[%clk 0:02:16.9]} 18. Rd1
{[%clk 0:02:12.5]} 18... Qf6 {[%clk 0:02:12.7]} 19. Qc3 {[%clk 0:01:48.1]} 19...
Qxc3+ {[%clk 0:01:50.9]} 20. bxc3 {[%clk 0:01:49]} 20... Rac8 {[%clk 0:01:51.3]}
21. O-O {[%clk 0:01:36.4]} 21... Na5 {[%clk 0:01:37.7]} 22. Bxa7 {[%clk
0:01:33.6]} 22... Rxc3 {[%clk 0:01:35.2]} 23. Bd4 {[%clk 0:01:33.6]} 23... Rc2
{[%clk 0:01:24.7]} 24. g4 {[%clk 0:01:32.4]} 24... Bc8 {[%clk 0:01:13.8]} 25.
Ne4 {[%clk 0:01:31.4]} 25... Nc6 {[%clk 0:01:11]} 26. Nf6+ {[%clk 0:01:25.3]}
26... Kg7 {[%clk 0:01:10.5]} 27. Ba1 {[%clk 0:01:14.8]} 27... Kh6 {[%clk
0:01:07.3]} 28. Rfe1 {[%clk 0:01:00.2]} 28... Be6 {[%clk 0:01:06]} 29. h4 {[%clk
0:00:56.1]} 29... g5 {[%clk 0:00:59.5]} 30. Kg2 {[%clk 0:00:42.1]} 30... Rd8
{[%clk 0:00:48.9]} 31. Rxd8 {[%clk 0:00:35.3]} 31... Nxd8 {[%clk 0:00:49.8]} 32.
Kg3 {[%clk 0:00:26.8]} 32... gxh4+ {[%clk 0:00:47.5]} 33. Kxh4 {[%clk 0:00:20]}
33... Rxf2 {[%clk 0:00:45.6]} 34. Ne4 {[%clk 0:00:18]} 34... Rh2+ {[%clk
0:00:43.4]} 35. Kg3 {[%clk 0:00:17.4]} 35... Ra2 {[%clk 0:00:43.5]} 36. Kf4
{[%clk 0:00:15.7]} 36... Nc6 {[%clk 0:00:41.3]} 37. Bf6 {[%clk 0:00:15.1]} 37...
Rxa3 {[%clk 0:00:33.1]} 38. Rh1+ {[%clk 0:00:14.2]} 38... Kg6 {[%clk 0:00:31.2]}
39. Rh8 {[%clk 0:00:14.2]} 39... Bxg4 {[%clk 0:00:19.1]} 40. Rg8+ {[%clk
0:00:13.4]} 40... Kh7 {[%clk 0:00:17.5]} 41. Rxg4 {[%clk 0:00:13.4]} 41... Ra1
{[%clk 0:00:13]} 42. Rg7+ {[%clk 0:00:11.6]} 42... Kh6 {[%clk 0:00:13]} 43. Rxf7
{[%clk 0:00:10.9]} 43... Rf1+ {[%clk 0:00:12.2]} 44. Ke3 {[%clk 0:00:10.5]}
44... Ne5 {[%clk 0:00:10.3]} 45. Bg7+ {[%clk 0:00:08]} 45... Kg6 {[%clk
0:00:09.3]} 46. Rxf1 {[%clk 0:00:08.5]} 46... Ng4+ {[%clk 0:00:09.4]} 47. Kd4
{[%clk 0:00:07.6]} 47... Kxg7 {[%clk 0:00:09.6]} 48. Rg1 {[%clk 0:00:07.5]} 1-0

[Event "Late-Titled-Tuesday-Blitz-March-12-2024"]
[Site "Chess.com"]
[Date "2024.03.12"]
[Round "10"]
[White "simaopdias"]
[Black "Inepton_Fermion"]
[Result "0-1"]
[WhiteElo "2266"]
[BlackElo "2463"]
[TimeControl "180+1"]
[EndTime "15:53:53 PDT"]
[Termination "Inepton_Fermion won on time"]

1. e4 {[%clk 0:03:00.1]} 1... c5 {[%clk 0:02:27.9]} 2. Nf3 {[%clk 0:03:00.5]}
2... e6 {[%clk 0:02:27.6]} 3. d4 {[%clk 0:03:00.9]} 3... cxd4 {[%clk 0:02:28.5]}
4. Nxd4 {[%clk 0:03:01.4]} 4... Nc6 {[%clk 0:02:27.9]} 5. Be3 {[%clk 0:03:01.2]}
5... Nf6 {[%clk 0:02:26.8]} 6. Bd3 {[%clk 0:03:00.9]} 6... d5 {[%clk 0:02:19.5]}
7. Bb5 {[%clk 0:02:40.3]} 7... Bd7 {[%clk 0:02:13.4]} 8. Bxc6 {[%clk 0:02:34.7]}
8... bxc6 {[%clk 0:02:13.6]} 9. e5 {[%clk 0:02:34.9]} 9... Ne4 {[%clk
0:02:12.2]} 10. O-O {[%clk 0:02:33.6]} 10... Be7 {[%clk 0:02:01.3]} 11. f3
{[%clk 0:02:33.2]} 11... Nc5 {[%clk 0:02:01.4]} 12. Nd2 {[%clk 0:02:26.2]} 12...
O-O {[%clk 0:01:58.5]} 13. f4 {[%clk 0:02:17.5]} 13... Na4 {[%clk 0:01:52.5]}
14. Rb1 {[%clk 0:02:12.8]} 14... Rb8 {[%clk 0:01:46]} 15. N4b3 {[%clk
0:02:07.4]} 15... c5 {[%clk 0:01:42.2]} 16. c4 {[%clk 0:01:58.6]} 16... dxc4
{[%clk 0:01:29.3]} 17. Nxc4 {[%clk 0:01:58.1]} 17... Bb5 {[%clk 0:01:29.7]} 18.
Qe2 {[%clk 0:01:56.5]} 18... Nb6 {[%clk 0:00:59.3]} 19. Nbd2 {[%clk 0:01:56.1]}
19... Qc8 {[%clk 0:00:47.1]} 20. Rfc1 {[%clk 0:01:54.1]} 20... Qa6 {[%clk
0:00:46.7]} 21. b3 {[%clk 0:01:37.2]} 21... Nd5 {[%clk 0:00:27.1]} 22. Ne4
{[%clk 0:01:24.4]} 22... Rfc8 {[%clk 0:00:22.6]} 23. Bd2 {[%clk 0:01:23.5]}
23... Nb4 {[%clk 0:00:20.4]} 24. Bxb4 {[%clk 0:01:17]} 24... cxb4 {[%clk
0:00:21.3]} 25. Qg4 {[%clk 0:01:05.7]} 25... Bxc4 {[%clk 0:00:19.5]} 26. bxc4
{[%clk 0:00:59.7]} 26... Rxc4 {[%clk 0:00:19.2]} 27. Nf6+ {[%clk 0:00:59.2]}
27... Kh8 {[%clk 0:00:15]} 28. Nh5 {[%clk 0:00:59.1]} 28... Bf8 {[%clk
0:00:11.4]} 29. Rd1 {[%clk 0:00:54.9]} 29... Qxa2 {[%clk 0:00:07.1]} 30. h4
{[%clk 0:00:45]} 30... b3 {[%clk 0:00:06.3]} 31. Ra1 {[%clk 0:00:31.4]} 31...
Qxa1 {[%clk 0:00:03.4]} 32. Rxa1 {[%clk 0:00:30.9]} 32... b2 {[%clk 0:00:03.9]}
33. Qd1 {[%clk 0:00:05.5]} 33... bxa1=Q {[%clk 0:00:03.7]} 34. Qxa1 {[%clk
0:00:06]} 34... Rc7 {[%clk 0:00:02.7]} 35. Kh2 {[%clk 0:00:05.4]} 35... Rcb7
{[%clk 0:00:02.1]} 36. Qa4 {[%clk 0:00:02.8]} 36... Ra8 {[%clk 0:00:01.9]} 37.
Qa6 {[%clk 0:00:02.7]} 37... Rab8 {[%clk 0:00:02.3]} 38. Kg3 {[%clk 0:00:02.6]}
38... Be7 {[%clk 0:00:02.7]} 39. Kg4 {[%clk 0:00:02.4]} 39... g6 {[%clk
0:00:02.9]} 40. Ng3 {[%clk 0:00:02.4]} 40... h5+ {[%clk 0:00:02.5]} 0-1